fUST/lending_fUST_20250624
["ID","MTS","AMOUNT","RATE_DAILY","PERIOD"]
[367242823,1750713046539,-1996.47,0.00020042,2]
[367242825,1750713046549,-460.0,0.00020044,2]
[367242827,1750713046558,-460.0,0.00020044,2]
[367242829,1750713046569,-2458.42,0.00020044,2]
[367242831,1750713046578,-768.95,0.00020044,2]
[367242832,1750713046587,-499.06,0.00020044,2]
[367242834,1750713046597,-250.22,0.00020044,2]
[367242836,1750713046606,-1326.42,0.00020044,2]
[367242839,1750713046616,-568.46,0.00020044,2]
[367242840,1750713046626,-1916.14,0.00020044,2]
[367242843,1750713046635,-2981.58,0.00020044,2]
[367242844,1750713046645,-561.49,0.00020044,2]
[367242846,1750713046654,-998.87,0.00020044,2]
[367242849,1750713046664,-453.80674209,0.00020044,2]
[367242851,1750713046673,-746.54,0.00020044,2]
[367242852,1750713046682,-1197.46,0.00020044,2]
[367242854,1750713046691,-868.07,0.00020044,2]
[367242856,1750713046701,-608.93,0.00020044,2]
[367242858,1750713046710,-3607.91,0.00020044,2]
[367242860,1750713046719,-460.0,0.00020044,2]
[367242863,1750713046730,-460.0,0.00020044,2]
[367242865,1750713046739,-1233.5,0.00020044,2]
[367242867,1750713046748,-852.78,0.00020044,2]
[367242869,1750713046757,-811.33,0.00020044,2]
[367242871,1750713046765,-460.0,0.00020044,2]
[367242873,1750713046774,-460.0,0.00020051,2]
[367242875,1750713046783,-460.0,0.00020051,2]
[367242876,1750713046792,-460.0,0.00020051,2]
[367242878,1750713046801,-460.0,0.00020051,2]
[367242880,1750713046810,-460.0,0.00020051,2]
[367242882,1750713046819,-460.0,0.00020051,2]
[367242884,1750713046829,-460.0,0.00020051,2]
[367242886,1750713046839,-307.0423032,0.00020051,2]
[367242888,1750713046848,-555.63,0.00020051,2]
[367242890,1750713046857,-460.0,0.00020051,2]
[367242891,1750713046867,-460.0,0.00020051,2]
[367242892,1750713046876,-460.0,0.00020051,2]
[367242893,1750713046886,-460.0,0.00020051,2]
[367242894,1750713046895,-460.0,0.00020051,2]
[367242895,1750713046904,-521.35,0.00020051,2]
[367242896,1750713046914,-460.0,0.00020051,2]
[367242897,1750713046923,-460.0,0.00020051,2]
[367242898,1750713046932,-460.0,0.00020051,2]
[367242899,1750713046942,-834.36,0.00020051,2]
[367242900,1750713046951,-460.0,0.00020051,2]
[367242902,1750713046961,-460.0,0.00020051,2]
[367242903,1750713046970,-460.0,0.00020051,2]
[367242904,1750713046979,-460.0,0.00020051,2]
[367242905,1750713046988,-460.0,0.00020051,2]
[367242906,1750713046997,-460.0,0.00020051,2]
[367242907,1750713047007,-460.0,0.00020051,2]
[367242908,1750713047016,-460.0,0.00020051,2]
[367242909,1750713047025,-460.0,0.00020051,2]
[367242910,1750713047034,-460.0,0.00020051,2]
[367242911,1750713047044,-460.0,0.00020051,2]
[367242912,1750713047053,-460.0,0.00020051,2]
[367242913,1750713047063,-460.0,0.00020051,2]
[367242914,1750713047072,-460.0,0.00020051,2]
[367242916,1750713047082,-460.0,0.00020051,2]
[367242917,1750713047091,-460.0,0.00020051,2]
[367242919,1750713047100,-460.0,0.00020051,2]
[367242921,1750713047109,-460.0,0.00020051,2]
[367242923,1750713047117,-460.0,0.00020051,2]
[367242924,1750713047126,-460.0,0.00020051,2]
[367242926,1750713047135,-460.0,0.00020051,2]
[367242928,1750713047145,-362.44426746,0.00020051,2]
[367242930,1750713047155,-460.0,0.00020051,2]
[367242932,1750713047164,-460.0,0.00020051,2]
[367242934,1750713047173,-460.0,0.00020051,2]
[367242937,1750713047183,-460.0,0.00020051,2]
[367242938,1750713047192,-460.0,0.00020051,2]
[367242940,1750713047201,-460.0,0.00020051,2]
[367242942,1750713047210,-460.0,0.00020051,2]
[367242944,1750713047220,-1007.44,0.00020051,2]
[367242946,1750713047229,-460.0,0.00020051,2]
[367242948,1750713047238,-460.0,0.00020051,2]
[367242950,1750713047247,-778.84,0.00020051,2]
[367242952,1750713047256,-691.92,0.00020051,2]
[367242954,1750713047265,-202.46,0.00020051,2]
[367242956,1750713047275,-460.0,0.00020051,2]
[367242958,1750713047284,-460.0,0.00020051,2]
[367242960,1750713047294,-681.31,0.00020051,2]
[367242962,1750713047302,-673.85,0.00020051,2]
[367242964,1750713047311,-460.0,0.00020051,2]
[367242966,1750713047322,-688.21,0.00020051,2]
[367242969,1750713047332,-460.0,0.00020051,2]
[367242970,1750713047341,-460.0,0.00020051,2]
[367242972,1750713047350,-151.0,0.00020051,2]
[367242974,1750713047359,-460.0,0.00020051,2]
[367242976,1750713047368,-460.0,0.00020051,2]
[367242978,1750713047377,-460.0,0.00020051,2]
[367242980,1750713047387,-611.84,0.00020051,2]
[367242982,1750713047396,-489.21869622,0.00020051,2]
[367242984,1750713047405,-1114.83,0.00020051,2]
[367242986,1750713047414,-460.0,0.00020051,2]
[367242988,1750713047423,-460.0,0.00020051,2]
[367242990,1750713047432,-872.33,0.00020051,2]
[367242992,1750713047441,-460.0,0.00020051,2]
[367242994,1750713047450,-460.0,0.00020051,2]
[367242996,1750713047462,-460.0,0.00020051,2]
[367242998,1750713047472,-460.0,0.00020051,2]
[367243000,1750713047481,-460.0,0.00020051,2]
[367243002,1750713047490,-648.26,0.00020051,2]
[367243004,1750713047499,-460.0,0.00020051,2]
[367243006,1750713047508,-460.0,0.00020051,2]
[367243008,1750713047518,-250.656945,0.00020051,2]
[367243010,1750713047527,-1112.93,0.00020051,2]
[367243012,1750713047536,-460.0,0.00020053,2]
[367243014,1750713047545,-396.85594251,0.00020055,2]
[367243016,1750713047554,-460.0,0.00020055,2]
[367243018,1750713047562,-399.41,0.00020055,2]
[367243020,1750713047571,-460.0,0.00020055,2]
[367243022,1750713047580,-460.0,0.00020055,2]
[367243024,1750713047589,-460.0,0.00020055,2]
[367243026,1750713047598,-357.76,0.00020055,2]
[367243027,1750713047608,-460.0,0.00020055,2]
[367243029,1750713047616,-460.0,0.00020055,2]
[367243031,1750713047625,-1763.36,0.00020055,2]
[367243033,1750713047634,-735.83,0.00020055,2]
[367243035,1750713047644,-6806.59,0.00020055,2]
[367243037,1750713047653,-1456.91,0.00020055,2]
[367243039,1750713047662,-1053.14,0.00020055,2]
[367243041,1750713047671,-460.0,0.00020055,2]
[367243043,1750713047680,-799.06,0.00020055,2]
[367243045,1750713047689,-460.0,0.00020055,2]
[367243047,1750713047700,-1090.77,0.00020055,2]
[367243049,1750713047709,-938.86,0.00020055,2]
[367243051,1750713047718,-2416.82,0.00020055,2]
[367243053,1750713047727,-951.38,0.00020055,2]
[367243055,1750713047736,-564.51,0.00020055,2]
[367243057,1750713047745,-460.0,0.00020055,2]
[367243059,1750713047754,-460.0,0.00020056,2]
[367243061,1750713047763,-151.0,0.00020056,2]
[367243063,1750713047773,-151.0,0.00020056,2]
[367243065,1750713047782,-151.0,0.00020056,2]
[367243067,1750713047791,-151.0,0.00020056,2]
[367243069,1750713047800,-151.0,0.00020056,2]
[367243070,1750713047809,-151.0,0.00020056,2]
[367243071,1750713047819,-460.0,0.00020056,2]
[367243072,1750713047828,-460.0,0.00020056,2]
[367243073,1750713047837,-460.0,0.00020056,2]
[367243074,1750713047846,-460.0,0.00020056,2]
[367243075,1750713047856,-460.0,0.00020056,2]
[367243076,1750713047865,-460.0,0.00020056,2]
[367243077,1750713047874,-500.0,0.00020056,2]
[367243078,1750713047884,-638.1,0.00020056,2]
[367243079,1750713047893,-460.0,0.00020056,2]
[367243080,1750713047902,-318.474938,0.00020056,2]
[367243081,1750713047911,-318.474938,0.00020056,2]
[367243082,1750713047920,-460.0,0.00020056,2]
[367243083,1750713047930,-460.0,0.00020056,2]
[367243084,1750713047938,-151.0,0.00020056,2]
[367243085,1750713047947,-460.0,0.00020056,2]
[367243086,1750713047956,-741.03,0.00020056,2]
[367243087,1750713047965,-460.0,0.00020056,2]
[367243088,1750713047974,-749.26,0.00020056,2]
[367243089,1750713047983,-460.0,0.00020056,2]
[367243090,1750713047992,-526.39,0.00020056,2]
[367243091,1750713048001,-2964.55,0.00020056,2]
[367243092,1750713048010,-208.068161,0.00020056,2]
[367243093,1750713048019,-208.068161,0.00020056,2]
[367243094,1750713048029,-151.342516,0.00020056,2]
[367243095,1750713048038,-460.0,0.00020056,2]
[367243096,1750713048047,-151.342516,0.00020056,2]
[367243097,1750713048057,-460.0,0.00020056,2]
[367243098,1750713048066,-460.0,0.00020056,2]
[367243099,1750713048076,-2045.16,0.00020056,2]
[367243100,1750713048085,-476.44,0.00020056,2]
[367243101,1750713048095,-610.23,0.00020056,2]
[367243102,1750713048104,-460.0,0.00020056,2]
[367243103,1750713048113,-3382.79,0.00020056,2]
[367243104,1750713048123,-588.75,0.00020056,2]
[367243105,1750713048132,-2795.99,0.00020056,2]
[367243106,1750713048142,-460.0,0.00020056,2]
[367243107,1750713048151,-292.776368,0.00020056,2]
[367243108,1750713048161,-292.776368,0.00020056,2]
[367243109,1750713048171,-460.0,0.00020056,2]
[367243110,1750713048181,-1238.41,0.00020056,2]
[367243111,1750713048191,-555.818725,0.00020056,2]
[367243112,1750713048200,-293.673515,0.00020056,2]
[367243113,1750713048210,-555.818725,0.00020056,2]
[367243114,1750713048220,-293.673515,0.00020056,2]
[367243115,1750713048229,-151.0,0.00020057,2]
[367243116,1750713048239,-170.504754,0.00020057,2]
[367243117,1750713048248,-170.504754,0.00020057,2]
[367243118,1750713048258,-151.0,0.00020057,2]
[367243119,1750713048268,-153.51658329,0.00020057,2]
[367243120,1750713048278,-151.0,0.00020057,2]
[367243121,1750713048288,-152.31220632,0.00020057,2]
[367243122,1750713048297,-151.0,0.00020057,2]
[367243123,1750713048307,-151.0,0.00020057,2]
[367243124,1750713048317,-151.0,0.00020057,2]
[367243125,1750713048326,-151.0,0.00020057,2]
[367243126,1750713048336,-151.0,0.00020057,2]
[367243127,1750713048346,-151.0,0.00020057,2]
[367243128,1750713048356,-151.0,0.00020057,2]
[367243129,1750713048366,-151.0,0.00020057,2]
[367243130,1750713048376,-151.373561,0.00020057,2]
[367243131,1750713048387,-151.0,0.00020057,2]
[367243132,1750713048397,-151.0,0.00020057,2]
[367243133,1750713048407,-151.0,0.00020057,2]
[367243134,1750713048417,-300.28477608,0.00020057,2]
[367243135,1750713048427,-151.0,0.00020057,2]
[367243136,1750713048437,-247.50446273,0.00020057,2]
[367243137,1750713048448,-153.07406754,0.00020057,2]
[367243138,1750713048458,-151.0,0.00020057,2]
[367243139,1750713048472,-151.3361149,0.00020057,2]
[367243140,1750713048482,-460.0,0.00020059,2]
[367243141,1750713048492,-460.0,0.00020059,2]
[367243142,1750713048503,-460.0,0.00020059,2]
[367243143,1750713048513,-431.018653,0.00020059,2]
[367243144,1750713048523,-431.018653,0.00020059,2]
[367243145,1750713048533,-460.0,0.00020059,2]
[367243146,1750713048543,-757.95,0.00020059,2]
[367243147,1750713048553,-460.0,0.00020059,2]
[367243148,1750713048564,-468.15,0.00020059,2]
[367243149,1750713048575,-205.13825141,0.00020059,2]
[367243150,1750713048585,-460.0,0.00020059,2]
[367243151,1750713048595,-485.2,0.00020059,2]
[367243152,1750713048606,-460.0,0.00020059,2]
[367243153,1750713048615,-460.0,0.00020059,2]
[367243154,1750713048627,-460.0,0.00020059,2]
[367243155,1750713048637,-460.0,0.00020059,2]
[367243156,1750713048647,-259.92698687,0.00020059,2]
[367243157,1750713048658,-460.0,0.00020059,2]
[367243158,1750713048669,-151.0,0.00020059,2]
[367243159,1750713048680,-151.0,0.00020059,2]
[367243160,1750713048691,-151.0,0.00020059,2]
[367243161,1750713048702,-151.0,0.00020059,2]
[367243162,1750713048713,-472.41,0.00020059,2]
[367243163,1750713048723,-151.0,0.00020059,2]
[367243164,1750713048732,-156.628792,0.00020059,2]
[367243165,1750713048742,-696.67,0.00020059,2]
[367243166,1750713048751,-513.86,0.00020059,2]
[367243167,1750713048761,-460.0,0.00020059,2]
[367243168,1750713048771,-632.2,0.00020059,2]
[367243169,1750713048781,-151.0,0.00020059,2]
[367243170,1750713048791,-151.0,0.00020059,2]
[367243171,1750713048801,-460.0,0.00020059,2]
[367243172,1750713048811,-460.0,0.00020066,2]
[367243173,1750713048821,-460.0,0.00020066,2]
[367243174,1750713048831,-151.0,0.00020066,2]
[367243175,1750713048841,-460.0,0.00020066,2]
[367243176,1750713048851,-460.0,0.00020066,2]
[367243177,1750713048860,-151.0,0.00020066,2]
[367243178,1750713048871,-151.0,0.00020067,2]
[367243179,1750713048881,-151.0,0.00020067,2]
[367243180,1750713048891,-460.0,0.00020067,2]
[367243182,1750713048901,-222.134489,0.00020067,2]
[367243184,1750713048911,-222.134489,0.00020067,2]
[367243186,1750713048921,-168.543402,0.00020067,2]
[367243188,1750713048931,-168.543402,0.00020067,2]
[367243190,1750713048941,-460.0,0.00020067,2]
[367243192,1750713048950,-460.0,0.00020067,2]
[367243194,1750713048960,-460.0,0.00020067,2]
[367243196,1750713048970,-460.0,0.00020067,2]
[367243197,1750713048980,-460.0,0.00020067,2]
[367243200,1750713048991,-460.0,0.00020067,2]
[367243202,1750713049001,-460.0,0.00020067,2]
[367243203,1750713049009,-151.0,0.00020068,2]
[367243205,1750713049016,-151.0,0.00020068,2]
[367243207,1750713049025,-151.0,0.00020084,2]
[367243210,1750713049034,-151.0,0.00020084,2]
[367243212,1750713049044,-151.0,0.00020084,2]
[367243214,1750713049054,-151.0,0.00020084,2]
[367243216,1750713049065,-151.0,0.000201,4]
[367243218,1750713049075,-151.0,0.000201,4]
[367243220,1750713049087,-198.0,0.00020112,2]
[367243222,1750713049097,-151.0,0.00020167,2]
[367243224,1750713049107,-151.0,0.00020167,2]
[367243226,1750713049117,-320.415296,0.00020167,2]
[367243228,1750713049128,-320.415296,0.00020167,2]
[367243230,1750713049138,-1025.727858,0.00020167,2]
[367243232,1750713049149,-1025.727858,0.00020167,2]
[367243234,1750713049159,-791.218279,0.00020187,2]
[367243237,1750713049169,-151.0,0.000202,3]
[367243238,1750713049179,-151.0,0.000202,3]
[367243239,1750713049190,-12553.69357174,0.00020246,3]
[367243240,1750713049200,-160.0,0.0002025,3]
[367243241,1750713049210,-846.53928378,0.0002025,3]
[367243242,1750713049220,-213.63163053,0.0002025,3]
[367243243,1750713049231,-168.0,0.00020284,2]
[367243244,1750713049241,-151.0,0.000203,3]
[367243245,1750713049251,-460.0,0.00020314,2]
[367243246,1750713049262,-460.0,0.00020314,2]
[367243247,1750713049271,-1917.77,0.00020316,2]
[367243248,1750713049281,-460.0,0.00020316,2]
[367243249,1750713049291,-1996.47,0.00020316,2]
[367243250,1750713049301,-460.0,0.00020318,2]
[367243251,1750713049311,-460.0,0.00020318,2]
[367243252,1750713049320,-2458.42,0.00020318,2]
[367243253,1750713049331,-768.95,0.00020318,2]
[367243254,1750713049340,-499.06,0.00020318,2]
[367243255,1750713049350,-1326.42,0.00020318,2]
[367243256,1750713049360,-1916.14,0.00020318,2]
[367243257,1750713049370,-2981.58,0.00020318,2]
[367243258,1750713049379,-561.49,0.00020318,2]
[367243259,1750713049389,-998.87,0.00020318,2]
[367243260,1750713049398,-746.54,0.00020318,2]
[367243261,1750713049409,-1197.46,0.00020318,2]
[367243262,1750713049418,-868.07,0.00020318,2]
[367243263,1750713049428,-608.93,0.00020318,2]
[367243264,1750713049438,-3607.91,0.00020318,2]
[367243265,1750713049448,-216.96,0.00020318,2]
[367243266,1750713049458,-1233.5,0.00020318,2]
[367243267,1750713049472,-852.78,0.00020318,2]
[367243268,1750713049481,-811.33,0.00020318,2]
[367243269,1750713049491,-460.0,0.00020318,2]
[367243270,1750713049500,-204.67713042,0.00020325,2]
[367243271,1750713049510,-460.0,0.00020325,2]
[367243272,1750713049521,-460.0,0.00020325,2]
[367243273,1750713049530,-460.0,0.00020325,2]
[367243274,1750713049540,-250.54,0.00020325,2]
[367243275,1750713049550,-555.63,0.00020325,2]
[367243276,1750713049559,-574.54,0.00020325,2]
[367243277,1750713049569,-460.0,0.00020325,2]
[367243278,1750713049579,-500.56,0.00020325,2]
[367243279,1750713049589,-460.0,0.00020325,2]
[367243280,1750713049598,-460.0,0.00020325,2]
[367243281,1750713049608,-460.0,0.00020325,2]
[367243282,1750713049618,-834.36,0.00020325,2]
[367243283,1750713049628,-460.0,0.00020325,2]
[367243284,1750713049638,-460.0,0.00020325,2]
[367243285,1750713049647,-460.0,0.00020325,2]
[367243286,1750713049657,-460.0,0.00020325,2]
[367243287,1750713049666,-460.0,0.00020325,2]
[367243288,1750713049676,-460.0,0.00020325,2]
[367243289,1750713049685,-460.0,0.00020325,2]
[367243290,1750713049695,-340.38774681,0.00020325,2]
[367243291,1750713049704,-460.0,0.00020325,2]
[367243292,1750713049714,-460.0,0.00020325,2]
[367243293,1750713049723,-460.0,0.00020325,2]
[367243294,1750713049733,-325.8071335,0.00020325,2]
[367243295,1750713049743,-460.0,0.00020325,2]
[367243296,1750713049752,-767.071298,0.00020325,2]
[367243297,1750713049763,-767.071298,0.00020325,2]
[367243298,1750713049773,-460.0,0.00020325,2]
[367243299,1750713049783,-460.0,0.00020325,2]
[367243300,1750713049793,-460.0,0.00020325,2]
[367243301,1750713049802,-151.0,0.00020325,2]
[367243302,1750713049812,-460.0,0.00020325,2]
[367243303,1750713049822,-151.0,0.00020325,2]
[367243304,1750713049832,-460.0,0.00020325,2]
[367243305,1750713049843,-460.0,0.00020325,2]
[367243306,1750713049853,-460.0,0.00020325,2]
[367243307,1750713049863,-563.44,0.00020325,2]
[367243308,1750713049873,-460.0,0.00020325,2]
[367243309,1750713049883,-467.69,0.00020325,2]
[367243310,1750713049893,-460.0,0.00020325,2]
[367243311,1750713049902,-1007.44,0.00020325,2]
[367243312,1750713049913,-460.0,0.00020325,2]
[367243313,1750713049924,-460.0,0.00020325,2]
[367243314,1750713049934,-778.84,0.00020325,2]
[367243315,1750713049943,-691.92,0.00020325,2]
[367243316,1750713049953,-460.0,0.00020325,2]
[367243317,1750713049963,-460.0,0.00020325,2]
[367243318,1750713049974,-681.31,0.00020325,2]
[367243319,1750713049984,-673.85,0.00020325,2]
[367243320,1750713050152,-460.0,0.00020325,2]
[367243321,1750713050162,-688.21,0.00020325,2]
[367243322,1750713050172,-460.0,0.00020325,2]
[367243323,1750713050182,-460.0,0.00020325,2]
[367243324,1750713050191,-151.0,0.00020325,2]
[367243325,1750713050200,-749.477381,0.00020325,2]
[367243326,1750713050210,-749.477381,0.00020325,2]
[367243327,1750713050219,-460.0,0.00020325,2]
[367243328,1750713050228,-151.0,0.00020325,2]
[367243329,1750713050237,-151.0,0.00020325,2]
[367243330,1750713050247,-313.26,0.00020325,2]
[367243331,1750713050256,-460.0,0.00020325,2]
[367243332,1750713050266,-611.84,0.00020325,2]
[367243333,1750713050275,-1114.83,0.00020325,2]
[367243334,1750713050284,-460.0,0.00020325,2]
[367243335,1750713050294,-460.0,0.00020325,2]
[367243336,1750713050303,-872.33,0.00020325,2]
[367243337,1750713050313,-460.0,0.00020325,2]
[367243338,1750713050323,-460.0,0.00020325,2]
[367243339,1750713050334,-460.0,0.00020325,2]
[367243340,1750713050343,-460.0,0.00020325,2]
[367243341,1750713050353,-370.49,0.00020325,2]
[367243342,1750713050362,-648.26,0.00020325,2]
[367243343,1750713050372,-460.0,0.00020325,2]
[367243344,1750713050381,-460.0,0.00020325,2]
[367243345,1750713050391,-1112.93,0.00020325,2]
[367243346,1750713050401,-151.0,0.00020327,2]
[367243347,1750713050410,-460.0,0.00020327,2]
[367243348,1750713050420,-460.0,0.00020329,2]
[367243349,1750713050429,-460.0,0.00020329,2]
[367243350,1750713050438,-460.0,0.00020329,2]
[367243351,1750713050447,-460.0,0.00020329,2]
[367243352,1750713050456,-151.0,0.00020329,2]
[367243353,1750713050470,-2907.4199,0.00020329,2]
[367243354,1750713050479,-2907.4199,0.00020329,2]
[367243355,1750713050488,-460.0,0.00020329,2]
[367243356,1750713050498,-460.0,0.00020329,2]
[367243357,1750713050510,-1763.36,0.00020329,2]
[367243358,1750713050519,-735.83,0.00020329,2]
[367243359,1750713050529,-6806.59,0.00020329,2]
[367243360,1750713050540,-1456.91,0.00020329,2]
[367243361,1750713050549,-1053.14,0.00020329,2]
[367243362,1750713050559,-460.0,0.00020329,2]
[367243363,1750713050568,-799.06,0.00020329,2]
[367243364,1750713050577,-460.0,0.00020329,2]
[367243365,1750713050589,-1090.77,0.00020329,2]
[367243366,1750713050598,-938.86,0.00020329,2]
[367243367,1750713050608,-2416.82,0.00020329,2]
[367243368,1750713050617,-951.38,0.00020329,2]
[367243369,1750713050627,-564.51,0.00020329,2]
[367243370,1750713050636,-532.82,0.00020329,2]
[367243371,1750713050645,-478.38,0.0002033,2]
[367243372,1750713050655,-598.62,0.0002033,2]
[367243373,1750713050665,-460.0,0.0002033,2]
[367243374,1750713050674,-460.0,0.0002033,2]
[367243375,1750713050683,-460.0,0.0002033,2]
[367243376,1750713050692,-500.0,0.0002033,2]
[367243377,1750713050701,-638.1,0.0002033,2]
[367243378,1750713050710,-460.0,0.0002033,2]
[367243379,1750713050720,-318.474938,0.0002033,2]
[367243380,1750713050729,-318.474938,0.0002033,2]
[367243381,1750713050738,-460.0,0.0002033,2]
[367243382,1750713050748,-460.0,0.0002033,2]
[367243383,1750713050757,-151.982218,0.0002033,2]
[367243384,1750713050767,-460.0,0.0002033,2]
[367243385,1750713050776,-741.03,0.0002033,2]
[367243386,1750713050786,-460.0,0.0002033,2]
[367243387,1750713050796,-749.26,0.0002033,2]
[367243388,1750713050806,-460.0,0.0002033,2]
[367243389,1750713050815,-526.39,0.0002033,2]
[367243390,1750713050824,-2964.55,0.0002033,2]
[367243391,1750713050833,-208.068161,0.0002033,2]
[367243392,1750713050842,-208.068161,0.0002033,2]
[367243393,1750713050851,-151.342516,0.0002033,2]
[367243394,1750713050860,-460.0,0.0002033,2]
[367243395,1750713050869,-151.342516,0.0002033,2]
[367243396,1750713050880,-460.0,0.0002033,2]
[367243397,1750713050889,-184.42,0.0002033,2]
[367243398,1750713050898,-2045.16,0.0002033,2]
[367243399,1750713050907,-476.44,0.0002033,2]
[367243400,1750713050916,-610.23,0.0002033,2]
[367243401,1750713050925,-460.0,0.0002033,2]
[367243402,1750713050935,-3382.79,0.0002033,2]
[367243403,1750713050944,-588.75,0.0002033,2]
[367243404,1750713050953,-2795.99,0.0002033,2]
[367243405,1750713050962,-460.0,0.0002033,2]
[367243406,1750713050971,-292.776368,0.0002033,2]
[367243407,1750713050980,-292.776368,0.0002033,2]
[367243408,1750713050989,-460.0,0.0002033,2]
[367243409,1750713050998,-1238.41,0.0002033,2]
[367243410,1750713051007,-555.818725,0.0002033,2]
[367243411,1750713051016,-293.673515,0.0002033,2]
[367243412,1750713051025,-555.818725,0.0002033,2]
[367243413,1750713051035,-293.673515,0.0002033,2]
[367243414,1750713051045,-289.831834,0.00020333,2]
[367243415,1750713051054,-289.831834,0.00020333,2]
[367243416,1750713051065,-460.0,0.00020333,2]
[367243417,1750713051074,-460.0,0.00020333,2]
[367243418,1750713051084,-460.0,0.00020333,2]
[367243419,1750713051093,-757.95,0.00020333,2]
[367243420,1750713051103,-460.0,0.00020333,2]
[367243421,1750713051111,-468.15,0.00020333,2]
[367243422,1750713051121,-460.0,0.00020333,2]
[367243423,1750713051129,-460.0,0.00020333,2]
[367243424,1750713051139,-460.0,0.00020333,2]
[367243425,1750713051148,-460.0,0.00020333,2]
[367243426,1750713051156,-460.0,0.00020333,2]
[367243427,1750713051165,-460.0,0.00020333,2]
[367243428,1750713051174,-472.41,0.00020333,2]
[367243429,1750713051183,-696.67,0.00020333,2]
[367243430,1750713051192,-170.504754,0.00020333,2]
[367243431,1750713051201,-170.504754,0.00020333,2]
[367243432,1750713051210,-460.0,0.00020333,2]
[367243433,1750713051219,-632.2,0.00020333,2]
[367243434,1750713051228,-460.0,0.00020333,2]
[367243435,1750713051238,-460.0,0.0002034,2]
[367243436,1750713051247,-460.0,0.0002034,2]
[367243437,1750713051256,-460.0,0.0002034,2]
[367243438,1750713051265,-460.0,0.0002034,2]
[367243439,1750713051275,-151.0,0.0002034,2]
[367243440,1750713051284,-151.0,0.0002034,2]
[367243441,1750713051293,-151.0,0.00020341,2]
[367243442,1750713051302,-151.0,0.00020341,2]
[367243443,1750713051311,-182.160218,0.00020341,2]
[367243444,1750713051320,-151.0,0.00020341,2]
[367243445,1750713051330,-151.0,0.00020341,2]
[367243446,1750713051339,-460.0,0.00020341,2]
[367243447,1750713051348,-460.0,0.00020341,2]
[367243448,1750713051357,-460.0,0.00020341,2]
[367243449,1750713051366,-460.0,0.00020341,2]
[367243450,1750713051375,-460.0,0.00020341,2]
[367243451,1750713051384,-460.0,0.00020341,2]
[367243452,1750713051394,-460.0,0.00020341,2]
[367243453,1750713051403,-460.0,0.00020341,2]
[367243454,1750713051412,-151.0,0.00020345,2]
[367243455,1750713051421,-232.854194,0.00020345,2]
[367243456,1750713051430,-232.854194,0.00020345,2]
[367243457,1750713051439,-151.396689,0.00020345,2]
[367243458,1750713051448,-159.567896,0.00020345,2]
[367243459,1750713051458,-159.567896,0.00020345,2]
[367243460,1750713051470,-151.0,0.00020345,2]
[367243461,1750713051479,-151.0,0.00020345,2]